Cogmind - Beta 16 --- EXPLORER MODE // 2025.12.05 @ 14:32:41 Player: K.K.Y. Result: Destroyed by G-50 Soldier with Heavy Laser Performance ------------- Evolutions (5) 2500 Regions Visited (13) 2600 Robots Destroyed (234) 1170 Value Destroyed (10199) 10199 Prototype IDs (40) 800 Alien Tech Used (0) 0 Bonus (1314) 1314 TOTAL SCORE: 18583 Bonus ------- Follower Combat Kills 1050 Met Data Miner 300 Friendly Fire -36 Cogmind --------- Core Integrity 0/1000 Matter 121/300 Energy 580/580 System Corruption 2% Temperature Cool (9) Movement Treading (280) Ox3 Location -5/Factory Parts ------- > --- POWER (2) -------- Particle Reactor Particle Reactor > --- PROPULSION (5) --- Heavy Treads > --- UTILITY (9) ------ Advanced Cooling System Humpback Machine Analyzer Layered Heavy Armor Plating Graphene Brace Dynamic Insulation System > --- WEAPON (2) ------- Enhanced Coil Gun Hypervelocity Gauss Cannon > --- INVENTORY (35) --- Neutrino Core Neutrino Core Particle Reactor Particle Reactor Machine Analyzer Machine Analyzer Improved Sensor Array Improved Signal Interpreter Advanced Salvage Targeting Computer Improved Medium Armor Plating Hacking Suite Relay Coupler [Proto] (4) Improved Corruption Screen Improved System Restoration Module Advanced System Restoration Module Advanced System Restoration Module Advanced System Restoration Module Advanced System Restoration Module Advanced System Restoration Module Tesla Rifle Tesla Rifle Advanced Plasma Cannon Heavy Phase Cannon Improved Heavy Machine Gun Advanced Assault Cannon Advanced Assault Cannon Mass Driver Enhanced Gauss Cannon Enhanced Gauss Cannon Hypervelocity Gauss Cannon Hypervelocity Gauss Cannon Hypervelocity Gauss Cannon Improved Remote Datajack Power Sword PL-3XN's Ring of Power Peak State ------------ > --- POWER ------------ Light Fission Core Neutrino Core > --- PROPULSION ------- Armored Medium Treads Heavy Treads Heavy Treads > --- UTILITY ---------- Experimental Cooling System Humpback Machine Analyzer Experimental Melee Analysis Suite Graphene Brace Hacking Suite System Shield Dynamic Insulation System > --- WEAPON ----------- Enhanced Coil Gun Mass Driver > --- INVENTORY -------- Armored Treads Improved Medium Treads Improved Medium Treads Diametric Drive Electron Diverter Flightbrick Advanced Heat Sink Advanced Heat Sink Advanced Heat Sink Advanced Heat Sink Huge Storage Unit Humpback Active Sensor Suite Makeshift Terrain Scan Processor Layered Medium Armor Plating Relay Coupler [Sentry] Relay Coupler [Specialist] Relay Coupler [Heavy] Relay Coupler [Behemoth] Relay Coupler [Proto] Relay Coupler [Proto] Dynamic Insulation System Arc Thrower Hypervelocity Gauss Cannon Proton Missile Launcher Heavy Proton Missile Launcher Improved Remote Datajack Gravity Flail PL-3XN's Ring of Power [Rating: 113] Favorites ----------- Power Fission Core Engine Improved Ion Engine Power Core Fission Core Reactor Particle Reactor Propulsion Armored Treads Treads Armored Treads Flight Unit Flight Unit Utility Machine Analyzer Device Experimental Cooling System Storage Humpback Processor Machine Analyzer Hackware Hacking Suite Protection Layered Heavy Armor Plating Weapon Enhanced Coil Gun Energy Gun High-powered Shock Rifle Energy Cannon Heavy Plasma Cannon Ballistic Gun Enhanced Coil Gun Ballistic Cannon Battle Cannon Launcher Heavy Proton Missile Launcher Special Weapon Remote Datajack Impact Weapon Gravity Flail Slashing Weapon Makeshift Sword Piercing Weapon Makeshift Spear Build | -11 -10 -10 -10 -9 -9 -6 -6 -6 -6 -6 -6 -5 -5 ------- Run | Yrd Mat Min Sub Rec Scr Fac Was Fac Low Low Dat Pro Fac Slots Evolved 11 | . 1 . . . . 8 . . . . . . 2 Power 1 | . . . . . . . . . . . . . 1 Propulsion 3 | . . . . . . 2 . . . . . . 1 Utility 7 | . 1 . . . . 6 . . . . . . . Weapon . | . . . . . . . . . . . . . . Parts Attached 124 | 5 7 3 9 2 6 6 4 23 4 1 . 6 48 Power 16 | 1 1 . 1 . 1 . . 4 . . . 1 7 Engine 6 | 1 1 . 1 . 1 . . 2 . . . . . Core 6 | . . . . . . . . 2 . . . 1 3 Reactor 4 | . . . . . . . . . . . . . 4 Propulsion 36 | 2 2 2 2 2 2 1 1 8 1 1 . 1 11 Treads 28 | 2 . . . 2 2 1 1 6 1 1 . 1 11 Leg . | . . . . . . . . . . . . . . Wheel . | . . . . . . . . . . . . . . Hover . | . . . . . . . . . . . . . . Flight 8 | . 2 2 2 . . . . 2 . . . . . Utility 38 | . 3 1 1 . 2 5 2 6 2 . . . 16 Device 18 | . 1 1 . . 2 2 1 3 1 . . . 7 Storage 7 | . . . 1 . . . 1 1 1 . . . 3 Processor 6 | . 2 . . . . 2 . 1 . . . . 1 Hackware 3 | . . . . . . 1 . 1 . . . . 1 Protection 4 | . . . . . . . . . . . . . 4 Artifact . | . . . . . . . . . . . . . . Weapon 34 | 2 1 . 5 . 1 . 1 5 1 . . 4 14 Energy Gun 1 | . . . . . . . . . . . . . 1 Energy Cannon 6 | . . . . . 1 . . 1 . . . 1 3 Ballistic Gun 11 | 2 1 . 2 . . . . 3 . . . . 3 Ballistic Cannon 11 | . . . 1 . . . 1 1 . . . 2 6 Launcher 1 | . . . . . . . . . . . . . 1 Special Weapon 1 | . . . . . . . . . 1 . . . . Impact Weapon 1 | . . . . . . . . . . . . 1 . Slashing Weapon 1 | . . . 1 . . . . . . . . . . Piercing Weapon 1 | . . . 1 . . . . . . . . . . Special Melee Weapon . | . . . . . . . . . . . . . . Unidentified Prototypes 14 | . . 1 . . . . 1 6 . . . 2 4 Parts Lost 50 | . . . 6 1 . . . 6 2 1 . 3 31 Power 6 | . . . 1 . . . . 2 . . . . 3 Propulsion 18 | . . . 3 . . . . 1 2 1 . . 11 Utility 16 | . . . 2 . . . . 1 . . . 2 11 Weapon 10 | . . . . 1 . . . 2 . . . 1 6 Highest Loss Streak 6 | . . . 2 1 . . . 2 2 1 . 1 6 To Critical Strikes 2 | . . . 1 1 . . . . . . . . . Average Backups 17 | . 4 5 3 7 20 18 20 19 21 28 28 27 15 Power . | . . . . . . . . . . 1 1 1 1 Propulsion 2 | . 1 2 . 1 5 3 1 2 3 4 4 4 1 Utility 9 | . 1 2 2 2 7 9 10 10 12 18 18 16 6 Weapon 4 | . 1 1 1 3 5 3 6 4 3 5 5 4 4 Tool/Special . | . . . . . . . . . . . . . . Unused Backups 77 | . 2 1 . . 7 1 2 10 1 1 . 2 50 Power 4 | . . . . . 1 . . . . 1 . . 2 Propulsion 4 | . . . . . 1 . 1 . . . . . 2 Utility 36 | . . . . . 2 . . 3 . . . 2 29 Weapon 29 | . 2 1 . . 3 . 1 6 1 . . . 15 Tool/Special 4 | . . . . . . 1 . 1 . . . . 2 Average Slot Usage (%) 82 | . 74 100 81 53 88 84 93 91 94 92 93 87 72 Engine 1 | . 12 12 3 . 8 6 6 3 . . . . . Core 2 | . . . . . . . . 1 6 6 6 6 2 Reactor 1 | . . . . . . . . . . . . . 6 Treads 19 | . 5 . 18 15 25 22 19 18 24 24 25 19 16 Flight 1 | . 19 25 4 . . . . . . . . . . Device 12 | . 4 21 13 . 8 16 19 14 9 12 12 16 16 Storage 8 | . . . 3 12 12 6 9 12 12 12 12 7 3 Processor 12 | . 8 15 12 12 12 15 18 18 15 12 12 12 7 Hackware 6 | . . . . . . 4 6 9 12 12 12 12 3 Energy Cannon 1 | . . . . . 8 6 6 2 . . . . 3 Ballistic Gun 4 | . 24 25 2 . . . . 6 11 6 6 5 3 Ballistic Cannon 3 | . . . . 12 12 6 6 1 . . . 4 2 Slashing Weapon 1 | . . . 10 . . . . . . . . . . Piercing Weapon 1 | . . . 10 . . . . . . . . . . Peak Build Rating 113 | 5 12 20 26 14 33 54 75 100 94 85 83 97 113 Average Rating 63 | 4 7 18 22 11 26 49 68 90 85 83 83 90 84 On Entrance 47 | . 5 12 20 11 14 33 54 75 94 85 83 83 94 Avg Prop Armor Cover (%) 3 | . . . . . . . . . . . . . 3 Naked Turns . | . . . . . . . . . . . . . . Heaviest Build 276 | 6 7 8 86 84 101 103 112 113 225 225 225 231 276 Greatest Support 170 | 40 40 8 40 43 45 85 115 130 100 80 80 110 170 Greatest Overweight (x) 28 | . 1 . 28 27 2 2 1 1 2 3 2 2 4 Average Overweight (x) 1 | . . . . 2 1 1 . . 1 2 2 2 1 Largest Inventory Capacity 35 | 5 5 5 25 25 25 25 25 25 35 35 35 35 35 Average Capacity 26 | 5 5 5 11 25 25 25 25 25 29 35 35 35 26 Most Carried 35 | 5 5 5 10 19 25 25 25 25 35 35 35 35 35 Average Carried 21 | . 4 5 5 11 24 22 24 24 28 35 35 34 16 Final Capacity 35 | 5 5 5 25 25 25 25 25 25 35 35 35 35 35 Final Carried 35 | 3 5 5 10 19 25 25 25 25 35 35 35 35 35 Class Distribution -------------------- 74% | Hacker-Mutant 11% | Hauler-Mutant 8% | Hacker-Skirmisher 3% | Scavenger-Mutant Dominant Class ---------------- Hacker-Mutant | -10/Materials Hacker-Scout | -10/Mines Hacker-Mutant | -10/Subcaves Hacker-Mutant | -9/Recycling Hacker-Mutant | -9/Scraptown Hacker-Skirmisher | -6/Factory Hacker-Skirmisher | -6/Waste Hacker-Mutant | -6/Factory Hacker-Mutant | -6/Lower Caves Hacker-Mutant | -6/Lower Caves Hacker-Mutant | -6/Data Miner Hacker-Mutant | -5/Proximity Caves Hauler-Mutant | -5/Factory Resources | -11 -10 -10 -10 -9 -9 -6 -6 -6 -6 -6 -6 -5 -5 ----------- Run | Yrd Mat Min Sub Rec Scr Fac Was Fac Low Low Dat Pro Fac Matter Collected 5254 | 168 312 56 200 98 78 75 361 770 235 64 . 273 2564 Remotely . | . . . . . . . . . . . . . . Salvage Created 10162 | 127 307 80 624 221 . . . 2061 593 118 . 531 5500 Parts 503 | 7 28 11 37 16 . . . 118 29 6 . 31 220 Haulers Intercepted 5 | . 2 . . . . . . 1 . . . . 2 Recyclers Shooed 11 | . . . . . . . . 1 . . . . 10 Parts Field Recycled . | . . . . . . . . . . . . . . Retrieved Matter . | . . . . . . . . . . . . . . Parts Self-Destructed . | . . . . . . . . . . . . . . Prevented . | . . . . . . . . . . . . . . Parts Restored . | . . . . . . . . . . . . . . Kills | -11 -10 -10 -10 -9 -9 -6 -6 -6 -6 -6 -6 -5 -5 ------- Run | Yrd Mat Min Sub Rec Scr Fac Was Fac Low Low Dat Pro Fac Combat Hostiles Destroyed 186 | . 4 6 16 3 . . . 39 12 3 . 14 89 Melee 13 | . . . 13 . . . . . . . . . . Guns 85 | . 4 6 1 . . . . 19 12 3 . 7 33 Cannons 78 | . . . 2 3 . . . 18 . . . 6 49 AOE 3 | . . . . . . . . 1 . . . . 2 Classes Destroyed 19 | 2 5 . 4 . . . . 5 2 . . 1 . Worker 7 | . . . . . . . . 1 . . . . 6 Builder 11 | . 3 . . . . . . 3 . . . . 5 Tunneler 5 | 3 1 . . . . . . 1 . . . . . Hauler 5 | . 2 . . . . . . 1 . . . . 2 Recycler 8 | 1 . . . 1 . . . . . . . . 6 Mechanic 1 | . 1 . . . . . . . . . . . . Turret 2 | . . . 2 . . . . . . . . . . Watcher 9 | . 2 . . . . . . . . . . . 7 Swarmer 41 | . 4 6 3 . . . . 6 4 2 . 8 8 Grunt 58 | . . . 2 . . . . 12 3 1 . 2 38 Brawler 2 | . . . . . . . . . 1 . . . 1 Duelist 3 | . . . . . . . . . 2 . . 1 . Sentry 17 | . . . 1 3 . . . 3 2 . . . 8 Specialist 2 | . . . . . . . . 2 . . . . . Hunter 11 | . . . . . . . . 5 . . . . 6 Programmer 37 | . . . . . . . . 8 . . . 2 27 Heavy 3 | . . . . . . . . 3 . . . . . Behemoth 2 | . . . . . . . . . . . . 1 1 Subdweller 10 | . . . 10 . . . . . . . . . . Best Kill Streak 10 | 2 5 2 3 2 . . . 4 6 2 . 4 10 Combat Bots Only 6 | . 2 2 3 1 . . . 3 6 2 . 4 6 Max Kills in Single Turn 3 | 1 1 1 2 1 . . . 2 2 1 . 1 3 Gunslinging 1 | . . . . . . . . . 1 . . . . Exploded 1 | . . . . . . . . 1 . . . . 1 Melee 2 | . . . 2 . . . . . . . . . . Uniques/NPCs Destroyed . | . . . . . . . . . . . . . . Combat | -11 -10 -10 -10 -9 -9 -6 -6 -6 -6 -6 -6 -5 -5 -------- Run | Yrd Mat Min Sub Rec Scr Fac Was Fac Low Low Dat Pro Fac Hostile Shots Fired 1729 | . 21 16 164 14 . . . 397 25 24 . 122 946 Missed 551 | . 6 9 48 4 . . . 151 10 7 . 31 285 Hits 1178 | . 15 7 116 10 . . . 246 15 17 . 91 661 Melee 10 | . . . . . . . . . . . . 10 . Projectile 1168 | . 15 7 116 10 . . . 246 15 17 . 81 661 AOE 6 | . . . . . . . . 3 . . . . 3 Critical Strikes 50 | . . . 3 1 . . . 6 . . . 7 33 Actively Blocked 38 | . . . . . . . . 2 . . . 3 33 Part Disruptions 3 | . . . . . . . . 1 . . . . 2 Actively Blocked 2 | . . . . . . . . . . . . . 2 Damage Taken 13104 | . 63 31 785 88 . . 15 2474 117 148 . 1265 8118 Core 1639 | . 4 10 201 34 . . . 267 10 22 . 87 1004 Absorbed by Shields . | . . . . . . . . . . . . . . Ignored by Resistances 7666 | . 49 23 512 58 . . 9 1492 75 92 . 742 4614 Regen/Repaired (Parts) 77 | . . . . . . . 59 18 . . . . . Core Remaining (%) 51 | 100 . . . . . . . . . . . 54 . Volleys Fired 642 | 15 25 9 29 10 . . . 112 16 12 . 48 366 Largest 2 | 2 2 2 2 1 . . . 2 2 1 . 2 2 Hottest 131 | 40 40 40 53 33 . . . 75 60 30 . 111 131 Shots Fired 1121 | 30 50 18 42 10 . . . 207 31 12 . 71 650 Gun 564 | 30 50 18 26 . . . . 128 30 11 . 39 232 Cannon 545 | . . . 16 10 . . . 79 . . . 32 408 Launcher 10 | . . . . . . . . . . . . . 10 Special 2 | . . . . . . . . . 1 1 . . . Kinetic 784 | 30 50 18 42 10 . . . 146 30 11 . 52 395 Thermal 272 | . . . . . . . . 61 . . . . 211 Explosive . | . . . . . . . . . . . . . . Electromagnetic 63 | . . . . . . . . . . . . 19 44 Robot Hit Streak 40 | 28 18 9 7 17 . . . 36 18 9 . 15 40 Robot Miss Streak 4 | . 2 4 2 . . . . 2 1 3 . 2 4 Penetration Max 1 | . . . . . . . . 1 1 1 . . 1 Secondary Targets 5 | . 2 . . . . . . 1 2 . . . . Max Gunslinging Chain 1 | . 1 . . . . . . 1 1 . . . . Shots Hit Robots 905 | 28 35 9 61 10 . . . 162 27 8 . 59 506 Core Hits 398 | 9 20 6 24 4 . . . 69 17 5 . 20 224 Critical Kills 19 | . . . . . . . . 3 2 . . . 14 Critical Parts Destroyed 29 | . . . . . . . . 9 . . . 4 16 Critical Strikes 63 | . . . 4 . . . . 13 2 . . 5 39 Meltdown 5 | . . . . . . . . 1 . . . . 4 Destroy 45 | . . . . . . . . 11 2 . . 4 28 Blast 7 | . . . 1 . . . . 1 . . . . 5 Corrupt 3 | . . . . . . . . . . . . 1 2 Sever 2 | . . . 2 . . . . . . . . . . Impale 1 | . . . 1 . . . . . . . . . . Melee Attacks 72 | . . . 72 . . . . . . . . . . Impact . | . . . . . . . . . . . . . . Slashing 49 | . . . 49 . . . . . . . . . . Piercing 23 | . . . 23 . . . . . . . . . . Sneak Attacks 1 | . . . 1 . . . . . . . . . . Combat Hostiles 1 | . . . 1 . . . . . . . . . . Follow-up Attacks 6 | . . . 6 . . . . . . . . . . Damage Inflicted 28061 | 280 395 111 1628 217 . . . 5591 874 230 . 1931 16804 Guns 11529 | 280 395 111 104 . . . . 3256 874 230 . 1024 5255 Cannons 13377 | . . . 276 217 . . . 2064 . . . 761 10059 Explosions 1875 | . . . . . . . . 271 . . . 146 1458 Melee 1248 | . . . 1248 . . . . . . . . . . Ramming 32 | . . . . . . . . . . . . . 32 Kinetic 16693 | 280 395 111 380 217 . . . 3649 874 230 . 1297 9260 Thermal 8015 | . . . . . . . . 1942 . . . 146 5927 Explosive 651 | . . . . . . . . . . . . . 651 Electromagnetic 1422 | . . . . . . . . . . . . 488 934 Impact . | . . . . . . . . . . . . . . Slashing 1082 | . . . 1082 . . . . . . . . . . Piercing 166 | . . . 166 . . . . . . . . . . Highest Corruption 13 | . . . . . . . . . . . . . 13 Average Corruption 5 | . . . . . . . . . . . . . 5 Corruption Purged 14 | . . . . . . . . . . . . . 14 Corruption Blocked . | . . . . . . . . . . . . . . Effects 112 | . . . . . . . . . . . . . 112 Message Errors 27 | . . . . . . . . . . . . . 27 Matter Fused 18 | . . . . . . . . . . . . . 18 Heat Flow Errors 17 | . . . . . . . . . . . . . 17 Energy Discharges 15 | . . . . . . . . . . . . . 15 Parts Rejected 1 | . . . . . . . . . . . . . 1 Parts Fused 1 | . . . . . . . . . . . . . 1 Data Loss (minor) 13 | . . . . . . . . . . . . . 13 Data Loss (major) 5 | . . . . . . . . . . . . . 5 Misfires 6 | . . . . . . . . . . . . . 6 Alerts 4 | . . . . . . . . . . . . . 4 Misdirections 1 | . . . . . . . . . . . . . 1 Weapon Failures 4 | . . . . . . . . . . . . . 4 Overload Shots . | . . . . . . . . . . . . . . Overflow Damage 764 | . . . . . . . . 143 . . . 15 606 Projectiles 414 | . . . . . . . . 97 . . . 15 302 Explosions 350 | . . . . . . . . 46 . . . . 304 Melee . | . . . . . . . . . . . . . . Knockbacks 47 | . . . 4 . . . . 3 . . . 5 35 Impact . | . . . . . . . . . . . . . . Kinetic 45 | . . . 4 . . . . 3 . . . 5 33 Secondary 2 | . . . . . . . . . . . . . 2 Self-Inflicted Damage 82 | . . . . . . . . . . . . . 82 Shots 6 | . . . . . . . . . . . . . 6 Rammed 3 | . . . . . . . . . . . . . 3 Targets Rammed 3 | . . . . . . . . . . . . . 3 Kicked . | . . . . . . . . . . . . . . Crushed . | . . . . . . . . . . . . . . Highest Temperature 578 | . 8 6 . . . . . 22 . . . . 578 Average Temperature 117 | . 4 3 . . . . . 7 . . . . 131 Received Heat Transfer 3147 | . . . 414 36 . . . 483 36 30 . 351 1797 Effects 22 | . . . . . . . . . . . . . 22 Shutdowns 4 | . . . . . . . . . . . . . 4 Energy Bleed 1 | . . . . . . . . . . . . . 1 Interference 4 | . . . . . . . . . . . . . 4 Matter Decay 2 | . . . . . . . . . . . . . 2 Short Circuit 2 | . . . . . . . . . . . . . 2 Damage (minor) 3 | . . . . . . . . . . . . . 3 Damage (major) 4 | . . . . . . . . . . . . . 4 Damage (core) 2 | . . . . . . . . . . . . . 2 Siege Activations . | . . . . . . . . . . . . . . Martial Activations . | . . . . . . . . . . . . . . Shielding Activations . | . . . . . . . . . . . . . . Robots Disrupted . | . . . . . . . . . . . . . . Combat Hostiles . | . . . . . . . . . . . . . . Robots Corrupted 4 | . . . . . . . . . . . . 1 3 Combat Hostiles 2 | . . . . . . . . . . . . 1 1 Parts Fried 9 | . . . . . . . . . . . . 1 8 Impact Corruptions 1 | . . . . . . . . . . . . . 1 Robots Melted 5 | . . . . . . . . 1 . . . . 4 Combat Hostiles 5 | . . . . . . . . 1 . . . . 4 Parts Melted 18 | . . . . . . . . 7 . . . . 11 Heat Transferred 10438 | . . . . . . . . 2725 . . . 100 7613 Parts Sabotaged . | . . . . . . . . . . . . . . Parts Stolen . | . . . . . . . . . . . . . . Parts Stripped . | . . . . . . . . . . . . . . Power Chain Reactions 2 | . . . . . . . . . . . . 1 1 Alert | -11 -10 -10 -10 -9 -9 -6 -6 -6 -6 -6 -6 -5 -5 ------- Run | Yrd Mat Min Sub Rec Scr Fac Was Fac Low Low Dat Pro Fac Maximum Alert Level 1 | . . . . . . . . 1 . . . . . Low Security (%) 99 | 100 100 100 . 100 . 100 100 94 . . . . 100 Level 1 . | . . . . . . . . 5 . . . . . Level 2 . | . . . . . . . . . . . . . . Level 3 . | . . . . . . . . . . . . . . Level 4 . | . . . . . . . . . . . . . . Level 5 . | . . . . . . . . . . . . . . High Security . | . . . . . . . . . . . . . . Max Security . | . . . . . . . . . . . . . . Peak Influence 254 | 10 59 70 . 25 . . 17 254 . . . . 180 Initial 19 | . . 1 . 19 . . . . . . . . . Average 24 | . 14 21 . . . . . 69 . . . . 25 Influence Increases 6734 | 20 156 150 460 77 . . 52 1957 315 110 . 340 3097 Destroy 0b10 Robot/C 4020 | . 80 120 160 60 . . . 1140 300 100 . 280 1780 Destroy 0b10 Robot/NC 245 | 20 45 . . 5 . . . 45 . . . . 130 Destroy Leader 888 | . 28 30 . . . . . 302 10 10 . 60 448 Allied During Kill 162 | . . . . . . . . 157 5 . . . . Successful Hack 110 | . 3 . . 12 . . . 61 . . . . 34 Disable Machine 232 | . . . . . . . . 44 . . . . 188 Destroy Structure 732 | . . . . . . . 52 178 . . . . 502 Lose Combat Pursuer 345 | . . . 300 . . . . 30 . . . . 15 Influence Decreases 6700 | 20 149 157 405 132 . . 52 1925 347 110 . 340 3063 Entered New Map 59 | . . 6 . 36 . . . . 17 . . . . Time Decay 6026 | 20 149 151 375 96 . . 52 1605 300 80 . 330 2868 Lost Part 315 | . . . 30 . . . . 60 10 10 . 10 195 Lost Ally 300 | . . . . . . . . 260 20 20 . . . Squads Dispatched 49 | . . . . . . 2 . 21 . . . . 26 Investigation 8 | . . . . . . 1 . 3 . . . . 4 Extermination 19 | . . . . . . 1 . 6 . . . . 12 Reinforcement 20 | . . . . . . . . 11 . . . . 9 Assault . | . . . . . . . . . . . . . . Garrison 2 | . . . . . . . . 1 . . . . 1 Intercept . | . . . . . . . . . . . . . . Searches Triggered . | . . . . . . . . . . . . . . Construction Impeded 5 | . . . . . . . . 2 . . . . 3 Haulers Reinforced 3 | . . . . . . . . 1 . . . . 2 Active Scanning Responses . | . . . . . . . . . . . . . . Cargo Convoy Interrupts 1 | . . . . . . . . 1 . . . . . Stealth | -11 -10 -10 -10 -9 -9 -6 -6 -6 -6 -6 -6 -5 -5 --------- Run | Yrd Mat Min Sub Rec Scr Fac Was Fac Low Low Dat Pro Fac Distress Signals 7 | . 2 . . . . . . 1 . . . . 4 Communications Jammed . | . . . . . . . . . . . . . . Distress Signals . | . . . . . . . . . . . . . . Times Spotted 257 | . 11 6 27 2 . . 4 58 15 6 . 14 114 Peak Tracking Total 9 | . 4 2 4 1 . . 3 7 9 3 . 4 4 Tactical Retreats 17 | . . . 14 . . . . 2 . . . . 1 Traps | -11 -10 -10 -10 -9 -9 -6 -6 -6 -6 -6 -6 -5 -5 ------- Run | Yrd Mat Min Sub Rec Scr Fac Was Fac Low Low Dat Pro Fac Traps Triggered 8 | . 1 . . . . 2 . 2 . . . . 3 Indirectly . | . . . . . . . . . . . . . . Trap Hack Attempts . | . . . . . . . . . . . . . . Triggered . | . . . . . . . . . . . . . . Disarmed . | . . . . . . . . . . . . . . Reprogrammed . | . . . . . . . . . . . . . . Reused . | . . . . . . . . . . . . . . Traps Extracted . | . . . . . . . . . . . . . . Installed . | . . . . . . . . . . . . . . Triggered . | . . . . . . . . . . . . . . Machines | -11 -10 -10 -10 -9 -9 -6 -6 -6 -6 -6 -6 -5 -5 ---------- Run | Yrd Mat Min Sub Rec Scr Fac Was Fac Low Low Dat Pro Fac Machines Disabled 60 | . . . 2 . . . . 11 . . . . 47 Max in Single Turn 8 | . . . 1 . . . . 8 . . . . 6 Garrison Access 4 | . . . . . . . . 1 . . . . 3 Machines Repaired . | . . . . . . . . . . . . . . Machines Dismantled . | . . . . . . . . . . . . . . Machines Sabotaged . | . . . . . . . . . . . . . . Overloaded Fab Kills . | . . . . . . . . . . . . . . Hacking | -11 -10 -10 -10 -9 -9 -6 -6 -6 -6 -6 -6 -5 -5 --------- Run | Yrd Mat Min Sub Rec Scr Fac Was Fac Low Low Dat Pro Fac Machines Accessed 55 | . 9 1 1 11 . 1 . 12 1 1 4 . 14 Terminals 25 | . 7 1 . 6 . . . 7 . . . . 4 Fabricators 3 | . . . . . . . . . . . . . 3 Repair Stations 1 | . . . . . . . . 1 . . . . . Recycling Units 11 | . 2 . . 5 . . . 1 . . . . 3 Scanalyzers 4 | . . . . . . 1 . 2 . . . . 1 Garrison Access 4 | . . . . . . . . 1 . . . . 3 Total Hacks 162 | . 14 1 1 33 . 3 . 33 5 4 32 . 36 Successful 125 | . 11 1 1 29 . . . 23 5 4 32 . 19 Failed 37 | . 3 . . 4 . 3 . 10 . . . . 17 Catastrophic 4 | . . . . . . . . 3 . . . . 1 Database Lockouts . | . . . . . . . . . . . . . . Manual 44 | . 9 1 . 15 . . . 13 . . . . 6 Terminals 57 | . 10 1 . 19 . . . 19 . . . . 8 Fabricators 14 | . . . . . . . . . . . . . 14 Repair Stations 3 | . . . . . . . . 3 . . . . . Recycling Units 25 | . 4 . . 14 . . . 2 . . . . 5 Scanalyzers 12 | . . . . . . 3 . 7 . . . . 2 Garrison Access 9 | . . . . . . . . 2 . . . . 7 Terminal Hacks 65 | . 1 . 1 12 . . . 8 5 4 32 . 2 Record 20 | . . . . . . . . . 5 4 11 . . Part Schematic 22 | . . . . 5 . . . 4 . . 13 . . Robot Schematic 8 | . . . . 1 . . . 1 . . 5 . 1 Robot Analysis 1 | . 1 . . . . . . . . . . . . Prototype ID Bank 5 | . . . . 2 . . . . . . 3 . . Emergency Access Points 1 | . . . . 1 . . . . . . . . . Terminal Index 2 | . . . . 1 . . . 1 . . . . . Recall Reinforcements 2 | . . . . . . . . 2 . . . . . Registered Prototypes 1 | . . . . 1 . . . . . . . . . Zone Layout 2 | . . . . 1 . . . . . . . . 1 Proto ID Catalog 1 | . . . 1 . . . . . . . . . . Fabricator Hacks 6 | . . . . . . . . . . . . . 6 Load Schematic 4 | . . . . . . . . . . . . . 4 Build 2 | . . . . . . . . . . . . . 2 Repair Station Hacks 1 | . . . . . . . . 1 . . . . . Scan Component 1 | . . . . . . . . 1 . . . . . Recycling Unit Hacks 13 | . 3 . . 5 . . . 2 . . . . 3 Retrieve Components 13 | . 3 . . 5 . . . 2 . . . . 3 Scanalyzer 7 | . . . . . . . . 6 . . . . 1 Insert Component 3 | . . . . . . . . 3 . . . . . Analyze 3 | . . . . . . . . 3 . . . . . Retrieve Study 1 | . . . . . . . . . . . . . 1 Garrison Access Hacks 4 | . . . . . . . . 1 . . . . 3 Seal Access 4 | . . . . . . . . 1 . . . . 3 Unauthorized Hacks 28 | . 7 1 . 11 . . . 5 . . . . 4 Terminals 22 | . 7 1 . 6 . . . 5 . . . . 3 Botnet 22 | . 7 1 . 6 . . . 5 . . . . 3 Fabricators 1 | . . . . . . . . . . . . . 1 Fabnet 1 | . . . . . . . . . . . . . 1 Repair Stations . | . . . . . . . . . . . . . . Recycling Units 5 | . . . . 5 . . . . . . . . . Reject 5 | . . . . 5 . . . . . . . . . Scanalyzers . | . . . . . . . . . . . . . . Garrison Access . | . . . . . . . . . . . . . . Data Cores Recovered . | . . . . . . . . . . . . . . Used . | . . . . . . . . . . . . . . Hacking Detections 32 | . 3 . . 5 . 1 . 12 . . . . 11 Full Trace Events 8 | . . . . 1 . 1 . 2 . . . . 4 Feedback Events . | . . . . . . . . . . . . . . Feedback Blocked . | . . . . . . . . . . . . . . Robot Schematics Acquired 8 | . . . . 1 . . . 1 . . 5 . 1 Robots Built . | . . . . . . . . . . . . . . Authchips . | . . . . . . . . . . . . . . Time . | . . . . . . . . . . . . . . Total Robot Build Rating . | . . . . . . . . . . . . . . Part Schematics Acquired 25 | . . . . 5 . . . 7 . . 13 . . Parts Built 2 | . . . . . . . . . . . . . 2 Authchips . | . . . . . . . . . . . . . . Time 50 | . . . . . . . . . . . . . 50 Total Part Build Rating 2 | . . . . . . . . . . . . . 2 Part Studies Acquired 1 | . . . . . . . . . . . . . 1 Parts Repaired . | . . . . . . . . . . . . . . Time . | . . . . . . . . . . . . . . Parts Recycled . | . . . . . . . . . . . . . . Recycled Matter . | . . . . . . . . . . . . . . Retrieved Matter . | . . . . . . . . . . . . . . Retrieved Components 71 | . 5 . . 18 . . . 20 . . . . 28 Parts Scanalyzed 3 | . . . . . . . . 3 . . . . . Part Schematics Acquired 3 | . . . . . . . . 3 . . . . . Parts Damaged 2 | . . . . . . . . 2 . . . . . Bothacking | -11 -10 -10 -10 -9 -9 -6 -6 -6 -6 -6 -6 -5 -5 ------------ Run | Yrd Mat Min Sub Rec Scr Fac Was Fac Low Low Dat Pro Fac Used RIF Installer . | . . . . . . . . . . . . . . Robots Hacked 1 | . . . . . . . . . 1 . . . . Non-combat 1 | . . . . . . . . . 1 . . . . Combat . | . . . . . . . . . . . . . . Robot Hacks Applied 1 | . . . . . . . . . 1 . . . . parse_system 1 | . . . . . . . . . 1 . . . . Relay Couplers Released 5 | . . . . . . . . . . . . . 5 Machine Destruction 3 | . . . . . . . . . . . . . 3 Programmers 2 | . . . . . . . . . . . . . 2 Fabnet Peak Effective % . | . . . . . . . . . . . . . . Robots Rewired 2 | . . . . . . . . . 2 . . . . Allies Hacked 1 | . . . . . . . . 1 . . . . . Hacks Repelled . | . . . . . . . . . . . . . . Allies | -11 -10 -10 -10 -9 -9 -6 -6 -6 -6 -6 -6 -5 -5 -------- Run | Yrd Mat Min Sub Rec Scr Fac Was Fac Low Low Dat Pro Fac Total Allies 23 | . . . . . . . 19 . 4 . . . . Largest Group 19 | . . . . . . . 19 16 3 2 . . . Highest-Rated Group 702 | . . . . . . . 702 627 91 60 . . . Highest-Rated Ally 50 | . . . . . . . 50 50 31 30 . . . Total Orders . | . . . . . . . . . . . . . . Ally Attacks 257 | . . . . . . . 118 111 18 10 . . . Total Damage 8125 | . . . . . . . 3675 3810 320 320 . . . Kills 35 | . . . . . . . 9 21 3 2 . . . Allies Corrupted 4 | . . . . . . . . 4 . . . . . Allies Melted . | . . . . . . . . . . . . . . Intel | -11 -10 -10 -10 -9 -9 -6 -6 -6 -6 -6 -6 -5 -5 ------- Run | Yrd Mat Min Sub Rec Scr Fac Was Fac Low Low Dat Pro Fac Active Infowar (turns) 25394 | . 162 334 4442 . 1763 907 318 1798 3781 4487 332 5023 2047 Sensors 6203 | . . 263 4442 . . 813 318 170 . . . . 197 IFF 3122 | . . . . . 1763 907 318 134 . . . . . Terrain 1337 | . 162 334 841 . . . . . . . . . . Machine Analysis 18523 | . . . . . . 737 318 1798 3781 4487 332 5023 2047 Robot Analysis Total 1 | . 1 . . . . . . . . . . . . Derelict Logs Recovered 7 | . . . 2 . . . . . 2 1 . 2 . Drone Launches . | . . . . . . . . . . . . . . Drone Recoveries . | . . . . . . . . . . . . . . Exploration | -11 -10 -10 -10 -9 -9 -6 -6 -6 -6 -6 -6 -5 -5 ------------- Run | Yrd Mat Min Sub Rec Scr Fac Was Fac Low Low Dat Pro Fac Turns Passed 38463 | 175 396 334 4738 4145 2489 907 972 3069 3781 4487 332 5023 7615 Spaces Moved 15028 | 89 711 768 2450 1095 852 286 481 1404 1334 1357 103 1494 2604 Core 54 | 19 . . 22 13 . . . . . . . . . Treads 12648 | 70 38 . 1543 1082 852 286 481 1404 1334 1357 103 1494 2604 Legs . | . . . . . . . . . . . . . . Wheels . | . . . . . . . . . . . . . . Hover . | . . . . . . . . . . . . . . Flight 2326 | . 673 768 885 . . . . . . . . . . Fastest Speed 37 | 50 37 37 37 240 240 236 155 155 245 325 325 325 162 Average Speed 231 | 136 43 37 162 369 288 250 167 177 275 326 325 325 238 Slowest Speed 1450 | 160 160 37 1450 1400 320 312 236 245 327 406 325 326 480 Overloaded Moves . | . . . . . . . . . . . . . . Propulsion Burnouts . | . . . . . . . . . . . . . . Robots Hopped 11 | . 3 8 . . . . . . . . . . . Potential Cave-ins 4 | . . . . . . . . . 2 . . . 2 Cave-ins Triggered . | . . . . . . . . . . . . . . Exploration Rate (%) 72 | 6 98 99 99 99 55 5 96 32 98 98 71 99 63 Regions Visited 13 Branch Regions 8 Pre-discovered Areas 5 | . . . 3 . . . . . 1 . 1 . . Known Exits Taken 11 | 1 1 1 1 1 1 . . 1 1 1 1 1 . Unknown Exits Taken . | . . . . . . . . . . . . . . Scrap Searched 19 | . . 1 7 . 3 . . . 4 3 . 1 . Spaces Dug 86 | . . . 7 . . . . . . . . . 79 Terrain Destroyed 516 | . . . 7 . . . . 148 17 9 . 28 307 Melee 7 | . . . 7 . . . . . . . . . . Projectile 251 | . . . . . . . . 87 17 9 . 22 116 AOE 258 | . . . . . . . . 61 . . . 6 191 Terrain Rammed . | . . . . . . . . . . . . . . Walls Destroyed . | . . . . . . . . . . . . . . Machines Disabled . | . . . . . . . . . . . . . . Actions | -11 -10 -10 -10 -9 -9 -6 -6 -6 -6 -6 -6 -5 -5 --------- Run | Yrd Mat Min Sub Rec Scr Fac Was Fac Low Low Dat Pro Fac Total 17655 | 116 748 794 3121 1180 892 480 648 1787 1417 1411 102 1592 3367 Wait 1495 | . . 18 552 63 . 177 152 203 39 39 . 17 235 Move 14994 | 88 704 751 2449 1094 851 286 480 1403 1333 1356 102 1493 2604 Hop 11 | . 3 8 . . . . . . . . . . . Pick Up 171 | 8 4 1 6 11 20 7 3 14 13 1 . 9 74 Fast Attach 57 | . 4 1 5 . 2 1 4 9 2 1 . 4 24 Attach 57 | 5 2 . 4 2 1 6 . 8 3 . . 4 22 Detach 21 | . 2 1 1 . . . . 5 2 . . . 10 Swap 36 | . 1 2 4 . 4 . 1 9 . . . 5 10 Drop 93 | . 3 3 9 . 14 1 8 24 3 1 . 12 15 Fire 642 | 15 25 9 29 10 . . . 112 16 12 . 48 366 Melee 62 | . . . 62 . . . . . . . . . . Ram . | . . . . . . . . . . . . . . Kick . | . . . . . . . . . . . . . . Crush 3 | . . . . . . . . . . . . . 3 Escape Stasis 6 | . . . . . . 2 . . . . . . 4 Rewire 6 | . . . . . . . . . 6 . . . . Trap . | . . . . . . . . . . . . . . Miscellaneous 1 | . . . . . . . . . . 1 . . . Route ------- -11/Scrapyard -10/Materials (discovered 5 exits: *Mat x3 / *Min x2) -10/Mines (discovered 4 exits: *Mat x2 / *Exi / *Sub) -10/Subcaves (discovered 3 exits: *Mat x2 / *Rec) -9/Recycling (discovered 2 exits: *Fac / *Scr) -9/Scraptown -6/Factory -6/Waste -6/Factory (discovered 4 exits: *Fac x3 / *Low) -6/Lower Caves -6/Lower Caves (discovered 2 exits: *Fac / *Dat) -6/Data Miner -5/Proximity Caves -5/Factory (discovered 4 exits: *Fac x2 / *Upp x2) History --------- Turn | Location | Event 2 | -11/Scrapyard | Identified exit to Materials 2 | -11/Scrapyard | Discovered exit to Materials (range 16) 176 | -11/Scrapyard | Entered Materials 176 | -10/Materials | Evolved 1 slot: Utility x1 242 | -10/Materials | Identified exit to Mines 242 | -10/Materials | Discovered exit to Mines (range 11) 314 | -10/Materials | Build established: Hacker-Mutant 344 | -10/Materials | Identified exit to Materials 344 | -10/Materials | Discovered exit to Materials (range 9) 362 | -10/Materials | Discovered exit to Materials (range 15) 473 | -10/Materials | Discovered exit to Mines (range 12) 507 | -10/Materials | Discovered exit to Materials (range 16) 572 | -10/Materials | Entered Mines 641 | -10/Mines | Found a damaged Exp. Sensor Array with a note attached 643 | -10/Mines | Found Prototype Device 643 | -10/Mines | Identified Exp. Sensor Array 692 | -10/Mines | Discovered exit to Materials (range 7) 730 | -10/Mines | A weapon hastily lodged in a ceiling crevice suddenly fell to the ground 748 | -10/Mines | Discovered exit to Materials (range 6) 775 | -10/Mines | Identified exit to Subcaves 775 | -10/Mines | Discovered exit to Subcaves (range 13) 802 | -10/Mines | Received a Rocket Launcher from a helpful Derelict 851 | -10/Mines | Deemed a non-threat by the Exiles lab entrance 851 | -10/Mines | Identified exit to Exiles 851 | -10/Mines | Discovered exit to Exiles (range 5) 906 | -10/Mines | Entered Subcaves 932 | -10/Subcaves | Build established: Hacker-Scout 1108 | -10/Subcaves | Shifting Twisted Machinery released Battle Rifle 1113 | -10/Subcaves | Identified exit to Materials 1113 | -10/Subcaves | Discovered exit to Materials (range 6) 1116 | -10/Subcaves | Shifting Twisted Machinery released Sub. Laser 1216 | -10/Subcaves | Shifting Twisted Machinery released Mak. Sword 1522 | -10/Subcaves | Build established: Hacker-Assassin 1621 | -10/Subcaves | Learned location of Zion (-7) 1891 | -10/Subcaves | Met a Zionite searching for "candidates" 1914 | -10/Subcaves | Shifting Twisted Machinery released Flamer 1937 | -10/Subcaves | Shifting Twisted Machinery released Flamer 2029 | -10/Subcaves | Learned location of Storage (-9) 2038 | -10/Subcaves | Build established: Hacker-Mutant 2581 | -10/Subcaves | Shifting Twisted Machinery released Sub. Power Source 3937 | -10/Subcaves | Disturbed a concealed Subdweller 4059 | -10/Subcaves | Discovered exit to Materials (range 4) 4061 | -10/Subcaves | Core integrity fell below 50% 4116 | -10/Subcaves | Visited 4L-MR0's lab 4205 | -10/Subcaves | Found Flightbrick 5260 | -10/Subcaves | Identified exit to Recycling 5260 | -10/Subcaves | Discovered exit to Recycling (range 11) 5343 | -10/Subcaves | Core integrity fell below 20% 5644 | -10/Subcaves | Entered Recycling 6605 | -9/Recycling | Identified exit to Factory 6605 | -9/Recycling | Discovered exit to Factory (range 16) 7134 | -9/Recycling | Scanned before Scraplab entrance 9767 | -9/Recycling | Entered Scraplab 9786 | -9/Recycling | Identified exit to Scraptown 9786 | -9/Recycling | Discovered exit to Scraptown (range 2) 9789 | -9/Recycling | Entered Scraptown 10321 | -9/Scraptown | Identified exit to Factory 10321 | -9/Scraptown | Discovered exit to Factory (range 13) 10460 | -9/Scraptown | Visited Junk Repository 11146 | -9/Scraptown | Visited TADAMA 11236 | -9/Scraptown | Visited Red Mages 11414 | -9/Scraptown | Visited Spacefarers 11505 | -9/Scraptown | Visited Symbiants 11542 | -9/Scraptown | Visited Shadow of the Wyrm 11651 | -9/Scraptown | Visited Awakened 11944 | -9/Scraptown | Found Relay Coupler [Proto] 11948 | -9/Scraptown | Found Relay Coupler [Proto] 12278 | -9/Scraptown | Entered Factory 12278 | -6/Factory | Evolved 8 slots: Propulsion x2, Utility x6 12740 | -6/Factory | Build established: Hacker-Skirmisher 13185 | -6/Factory | Sucked down chute 13185 | -6/Factory | Entered Waste 13241 | -6/Waste | Spotted C-40 Crusher 13260 | -6/Waste | Spotted C-40 Crusher 13264 | -6/Waste | Spotted C-40 Crusher 13275 | -6/Waste | Warlord forces began an assault 13283 | -6/Waste | Allies destroyed C-40 Crusher 13286 | -6/Waste | Allies destroyed C-40 Crusher 13293 | -6/Waste | Allies destroyed C-40 Crusher 13318 | -6/Waste | Spotted C-40 Crusher 13322 | -6/Waste | Allies destroyed C-40 Crusher 13344 | -6/Waste | Spotted C-40 Crusher 13354 | -6/Waste | Allies destroyed C-40 Crusher 13724 | -6/Waste | Identified exit to Factory 13724 | -6/Waste | Discovered exit to Factory (range 12) 14157 | -6/Waste | Entered Factory 14157 | -6/Factory | Accompanied by 16 allies 14284 | -6/Factory | Identified exit to Factory 14284 | -6/Factory | Discovered exit to Factory (range 15) 14616 | -6/Factory | Garrison activated, responded to threat 14638 | -6/Factory | Lost 3 allies 14857 | -6/Factory | Cargo convoy interrupted 14873 | -6/Factory | Found Prototype Processor 14948 | -6/Factory | Lost 9 allies 14961 | -6/Factory | Identified Exp. Melee Analysis Suite 14966 | -6/Factory | Found PL-3XN's Ring of Power 14997 | -6/Factory | P-60 Hacker assimilated allied 9O-S6Z(m) 15586 | -6/Factory | Discovered exit to Factory (range 13) 15630 | -6/Factory | Found Prototype Device 15898 | -6/Factory | Build established: Hacker-Mutant 16382 | -6/Factory | Discovered exit to Factory (range 13) 17135 | -6/Factory | Identified exit to Lower Caves 17135 | -6/Factory | Discovered exit to Lower Caves (range 6) 17226 | -6/Factory | Entered Lower Caves 17411 | -6/Lower Caves | Attracted the attention of an 0b10 checkpoint 17431 | -6/Lower Caves | Learned Factory stockpile data 17461 | -6/Lower Caves | Identified exit to Lower Caves 18012 | -6/Lower Caves | Encountered a Warlord checkpoint 18234 | -6/Lower Caves | A Commander dispatched an escort 18244 | -6/Lower Caves | Learned Factory emergency access door positions 18744 | -6/Lower Caves | Attracted the attention of an 0b10 outpost 21007 | -6/Lower Caves | Entered another Lower Caves area 21007 | -6/Lower Caves | Accompanied by 3 allies 21009 | -6/Lower Caves | Commander's escort returned to base 21494 | -6/Lower Caves | Learned location of 1 exit from Factory 21571 | -6/Lower Caves | Attracted the attention of an 0b10 checkpoint 22168 | -6/Lower Caves | Learned Armory emergency access door positions 22168 | -6/Lower Caves | Learned Research garrison access intel 23123 | -6/Lower Caves | Activated DRS Beacon 23274 | -6/Lower Caves | Encountered a Warlord checkpoint 23299 | -6/Lower Caves | Identified exit to Data Miner 23299 | -6/Lower Caves | Discovered exit to Data Miner (range 13) 24378 | -6/Lower Caves | Discovered exit to Factory (range 8) 25494 | -6/Lower Caves | Entered Data Miner 25494 | -6/Data Miner | Identified exit to Proximity Caves 25494 | -6/Data Miner | Discovered exit to Proximity Caves (range 6) 25556 | -6/Data Miner | Met Data Miner 25676 | -6/Data Miner | Learned location of Section 7 (-2) 25676 | -6/Data Miner | Acquired the access code to Warlord's prototype stash 25738 | -6/Data Miner | Received God Mode back door access code from Data Miner 25826 | -6/Data Miner | Entered Proximity Caves 26910 | -5/Proximity Caves | Found DCF Scrap (11 items) 27070 | -5/Proximity Caves | Spotted B-75 Beast 27108 | -5/Proximity Caves | Destroyed B-75 Beast 27162 | -5/Proximity Caves | Learned Factory trap positions 27185 | -5/Proximity Caves | Learned Factory terminal intel 27999 | -5/Proximity Caves | Discovered exit to Factory (range 16) 30849 | -5/Proximity Caves | Entered Factory 30849 | -5/Factory | Evolved 2 slots: Power x1, Propulsion x1 30850 | -5/Factory | Identified exit to Upper Caves 30851 | -5/Factory | Loaded intel: 110 trap records 30854 | -5/Factory | Loaded intel: 26 terminal locations 31350 | -5/Factory | Garrison activated, responded to threat 31574 | -5/Factory | Lost 5 parts (1p1n3u) 32156 | -5/Factory | Lost 6 parts (2n1u3w) 32158 | -5/Factory | Identified exit to Factory 32158 | -5/Factory | Discovered exit to Factory (range 14) 32857 | -5/Factory | Fabricated Humpback (x1) 32993 | -5/Factory | Core integrity fell below 50% 33156 | -5/Factory | Build established: Hauler-Mutant 33929 | -5/Factory | System corruption reached 10% 34146 | -5/Factory | Build established: Hacker-Mutant 34605 | -5/Factory | Build established: Scavenger-Mutant 35219 | -5/Factory | Fabricated Humpback (x1) 35527 | -5/Factory | Build established: Hauler-Mutant 35964 | -5/Factory | Core integrity fell below 20% 36583 | -5/Factory | Discovered exit to Factory (range 9) 37137 | -5/Factory | Spotted B-75 Beast 37273 | -5/Factory | Destroyed B-75 Beast 37538 | -5/Factory | Discovered exit to Upper Caves (range 14) 38464 | -5/Factory | Destroyed by G-50 Soldier with Heavy Laser Last Messages --------------- Retrieving 10/13 components... Visual Processing Unit Visual Processing Unit Unknown Hover Unit Antigrav System Mic. Fission Core Unknown Hover Unit Imp. Target Analyzer Mic. Fission Core Hvy. Laser Hpw. Shock Rifle 38423_ ALERT: Suspicious activity at Recycling Unit F004. Dispatching Investigation squad. 38457_ G-50 Soldier knocked back. 38459_ ALERT: Potential suspicious activity detected, Programmers report to Factory Zone 9D. 38460_ Slug penetrates G-50 Soldier. 38463_ G-50 Soldier destroyed. 38463_ HV Slug penetrates Door. Map ----- +----------------------------------------------------+ | ?????????????????????????????????? | | ????????????????????????+????????? | | ?????????????????????????????????? | | ????????????????????????+????????? | | ?????????????????????????????????? | | ?????????????????????????????????? | | ?????????????????????????????????? | | ?????????????????????????????????? | | ?????????????????????????????????? | | ####?????????????????????????????? | | " #?????????????????????????????? | | " #?????????????????????????????? | | #?????????????????????????????? | | #?????????????????????????????? | | #?????????????????????????????? | | #?????????????????????????????? | | #?????????????????????????????? | | #???????????????? ????????????? | | ####???????????????? ????????????? | | ???????????????????? ????????????? | | ???????????????!???? ????????????? | | ???????????????????? #???????????? | | ???????????????????? ###########?? | | ???????????????????# # ! #?? | | ????############???# # #?? | | ????# ] ???# # @! #?? | | ????# """""?+ g% #?? | | ????#* ! """"" ##;%#####+######? | | ????# """ ### #?# #? | | ????# / ### ### """ #? | | ??#######+#####+## % #="Y" #? | | ### % #="["* #? | | % "*!![ #? | | ### #!"""= #? | | ??#############+## % # """ #? | | ???????# ####### """ =#? | | ???????# """" #?????# #? | | ???????# """" #?????##########? | | ???????# """" #???????????????? | | ???????# """" #???????????????? | | ???????#!! """" #???????????????? | | ???????#!! """" #???????????????? | | ???????# ]#???????????????? | | ???????######?###????????????????? | | | | | | | | | | | | | +----------------------------------------------------+ Best States ------------- Heat Dissipation 78 Energy Generation 41 Energy Capacity 580 Matter Stores 600 Matter Capacity 600 Sight Range 16 Robot Scan Range 20 Terrain Scan Range 16 Terrain Scan Density 160 EM Shielding 2 Armor Coverage 600 Resistance: KI 35 Resistance: TH 35 Resistance: EX 35 Resistance: EM 35 Resistance: I 35 Resistance: S 35 Resistance: P 35 Evasion (%) 62 Melee Accuracy 12 Target Analysis 6 Recoil Reduction 5 Offensive Hacking 30 Defensive Hacking 20 Item Schematics ----------------- System Shield | -9/Recycling | Hacked Med. Armor Plating | -9/Recycling | Hacked Imp. EM Pulse Cannon | -9/Recycling | Hacked Particle Charger | -9/Recycling | Hacked Particle Gun | -9/Recycling | Hacked Electron Diverter | -6/Factory | Scanalyzed Antimatter Reactor | -6/Factory | Hacked Hvy. Phase Cannon | -6/Factory | Hacked Imp. Gyrokinetic Inverter | -6/Factory | Hacked Diametric Drive | -6/Factory | Scanalyzed Humpback | -6/Factory | Scanalyzed Adv. Sensor Array | -6/Factory | Hacked Combat Drone Bay | -6/Data Miner | Free Lgt. Regenerative Plating | -6/Data Miner | Free Imp. Energy Well | -6/Data Miner | Free Cld. Nuclear Pulse Thruster | -6/Data Miner | Free Hvy. Proton Cannon | -6/Data Miner | Free Imp. Heavy Treads | -6/Data Miner | Free Adv. Power Amplifier | -6/Data Miner | Free Adv. Datajack | -6/Data Miner | Free Adv. Salvage Targeting Computer | -6/Data Miner | Free Adv. Transmission Jammer | -6/Data Miner | Free Field Propulsion Array | -6/Data Miner | Free Arm. Heavy Treads | -6/Data Miner | Free Adv. Recalibrator | -6/Data Miner | Free Robot Schematics ------------------ L-31 Rogue | -9/Recycling | Hacked L-41 Fighter | -6/Factory | Hacked R-10 Processor | -6/Data Miner | Free E-15 Imp | -6/Data Miner | Free M-22 Extractor | -6/Data Miner | Free L-61 Swordsman | -6/Data Miner | Free M-36 Artificer | -6/Data Miner | Free H-66 Slayer | -5/Factory | Hacked Fabricated ------------ Humpback | x1 | -5/Factory Humpback | x1 | -5/Factory Repaired ---------- Nothing Studied --------- Hvy. Treads | -5/Factory | Hacked Alien Tech Used ----------------- None Achievements -------------- Ambidextrous Challenges ------------ None Game ------ Seed ZipControlDetonator Manual? 0 Play Time 02:15:13 Cumulative 173.7 hours Start 2025.12.05 @ 12:16:29 End 2025.12.05 @ 14:32:41 Sessions 1 Manual Loads 0 Difficulty Explorer Special Mode None Game No. 235 Rogue 0 Adventurer 0 Explorer 235 Win Type - Total 0 Types 0/0/0/0/0/0/0/0/0/0 Lore% 70 Gallery% 67 Achievement% 53 Wizard Run 0 Options --------- Layout 1 ASCII 0 Keyboard 0 Movement Mouse Keybinds 0 Fullscreen 1 Font 24/Smallcaps Map View 50x35 Zoom Use 0% Tactical HUD 1 Map Filters NONE Filters NONE Steam 1 RUN: 971a89c8-345a-4259-b075-24ed0417ce10